bitfinex-derivatives/quotes_ETHF0:USTF0_20220106
["timestamp","ask_amount","ask_price","bid_price","bid_amount"]
[1641474513313,10.389262,3385.6,3384.7,2.00479]
[1641474513511,10.389262,3385.6,3384.6,3.99598093]
[1641474513712,2.00479,3385.6,3385.1,1.5]
[1641474513913,2.00479,3385.6,3385.3,1.5]
[1641474514111,4.0,3387.0,3385.5,1.5]
[1641474514311,4.0,3387.0,3385.4,0.459982]
[1641474514312,4.0,3387.0,3385.9,1.5]
[1641474514513,5.47625227,3387.0,3385.9,0.8715]
[1641474514712,1.47639176,3386.6,3385.9,0.8715]
[1641474514913,2.00479,3386.4,3386.0,0.060551]
[1641474515115,0.384472,3386.3,3385.7,2.00479]
[1641474515312,4.384472,3386.3,3385.3,2.00479]
[1641474515512,12.384472,3386.3,3385.3,2.00479]
[1641474515712,4.0,3385.7,3385.3,3.50220591]
[1641474515915,0.397182,3385.6,3385.3,3.50220591]
[1641474516111,8.956782,3385.6,3385.3,3.50220591]
[1641474516714,0.5596,3385.6,3385.3,3.50220591]
[1641474516916,0.5596,3385.6,3385.4,0.99842356]
[1641474517112,0.384472,3385.5,3385.4,0.99842356]
[1641474518113,0.781654,3385.5,3384.9,2.00479]
[1641474518313,0.781654,3385.5,3384.9,2.065341]
[1641474518914,4.0,3385.3,3384.9,2.065341]
[1641474519116,0.397182,3385.2,3384.9,2.00479]
[1641474519315,8.0,3385.1,3384.9,2.00479]
[1641474519516,20.91,3385.1,3384.0,33.8263]
[1641474519717,1.47736892,3384.4,3383.7,0.99842356]
[1641474519916,1.47736892,3384.4,3382.8,1.475]
[1641474519917,8.781654,3384.3,3383.6,0.99842356]
[1641474520119,4.0,3383.9,3383.6,0.99842356]
[1641474520319,21.307182,3383.8,3383.6,0.99842356]
[1641474520516,26.035663,3383.8,3383.6,0.99842356]
[1641474520817,24.91958,3383.7,3383.6,0.99842356]
[1641474521018,26.95013098,3383.7,3383.6,0.99842356]
[1641474521217,31.67875198,3383.7,3383.6,0.99842356]
[1641474521417,30.201001,3383.7,3383.1,1.49741591]
[1641474521618,12.91,3383.4,3382.7,0.99842356]
[1641474521819,8.0,3383.3,3382.8,0.060551]
[1641474522020,8.781654,3383.3,3382.8,0.060551]
[1641474522319,4.00958,3383.7,3382.9,0.384472]
[1641474522519,12.00958,3383.7,3383.0,0.060551]
[1641474522719,9.87489149,3383.6,3382.7,0.99842356]
[1641474523121,9.87489149,3383.6,3382.6,2.00479]
[1641474523320,8.397182,3383.6,3382.6,3.50479]
[1641474523520,5.87490023,3383.6,3382.6,2.00479]
[1641474523921,13.87490023,3383.6,3382.6,2.00479]
[1641474524523,12.397182,3383.6,3382.6,2.00479]
[1641474524723,1.87488276,3383.6,3382.6,2.00479]
[1641474524926,1.87488276,3383.6,3382.6,3.50479]
[1641474525124,4.00958,3383.7,3383.0,1.5]
[1641474525426,2.00479,3383.7,3383.1,0.445023]
[1641474525824,2.00479,3383.7,3383.4,1.5]
[1641474526024,1.47714851,3384.9,3383.6,1.5]
[1641474526226,1.47714851,3384.9,3383.4,1.5]
[1641474526924,1.47714851,3384.9,3384.0,2.00479]
[1641474527125,12.0,3385.0,3384.0,2.60349]
[1641474527424,24.91,3385.0,3384.0,2.60349]
[1641474527624,12.0,3385.0,3384.0,2.60349]
[1641474527825,8.0,3385.0,3384.0,2.60349]
[1641474528027,2.00479,3385.1,3384.5,1.5]
[1641474528226,2.00479,3385.1,3384.6,0.445023]
[1641474528525,2.00479,3385.1,3384.2,1.5]
[1641474528727,2.00479,3385.4,3384.5,1.5]
[1641474528928,2.00479,3385.8,3385.0,2.00479]
[1641474529126,2.00479,3385.8,3385.1,0.060551]
[1641474529328,2.00479,3385.8,3385.3,1.5]
[1641474529527,2.00479,3385.8,3385.4,0.060551]
[1641474530026,1.47617164,3387.1,3385.7,1.5]
[1641474530327,1.47601476,3387.5,3385.7,0.7021]
[1641474530531,2.21752396,3387.3,3385.7,0.7021]
[1641474530727,0.7414373,3387.3,3385.7,0.7021]
[1641474530929,1.47608884,3387.3,3386.7,2.00479]
[1641474531131,0.384472,3387.2,3386.7,2.80169]
[1641474531528,0.397182,3387.1,3386.7,2.80169]
[1641474531728,8.0,3387.0,3386.7,2.80169]
[1641474531929,9.47623483,3387.0,3386.7,2.80169]
[1641474532128,0.397182,3386.9,3386.7,0.7969]
[1641474532329,0.397182,3386.9,3386.7,1.256882]
[1641474532529,0.397182,3386.9,3386.7,0.7969]
[1641474532930,0.384472,3387.2,3386.8,2.00479]
[1641474533730,0.384472,3387.2,3386.7,0.7969]
[1641474533731,0.397182,3387.1,3386.7,0.7969]
[1641474533929,20.91,3387.0,3386.3,2.00479]
[1641474534129,8.0,3387.0,3386.3,2.00479]
[1641474534328,1.86061749,3387.2,3386.4,0.384472]
[1641474534529,8.0,3387.4,3386.4,2.581472]
[1641474534732,3.48078733,3387.5,3386.7,1.5]
[1641474534931,2.00479,3388.5,3387.3,2.00479]
[1641474535129,1.47570546,3388.2,3387.3,2.83909]
[1641474535329,0.384472,3387.9,3387.4,0.060551]
[1641474535530,10.25751627,3387.9,3387.0,2.00479]
[1641474535733,0.03339651,3387.8,3387.0,2.00479]
[1641474535934,0.397182,3387.7,3387.1,0.060551]
[1641474536131,8.397182,3387.7,3387.1,0.060551]
[1641474536531,4.0,3387.4,3387.1,0.060551]
[1641474536737,12.0,3387.4,3387.0,2.00479]
[1641474537131,5.47606051,3387.4,3385.7,0.89634491]
[1641474537332,8.0,3387.3,3385.5,1.47606051]
[1641474537531,8.0,3387.1,3385.5,1.47606051]
[1641474537731,12.0,3386.7,3385.5,1.47606051]
[1641474538133,1.4763874,3386.6,3385.1,1.5]
[1641474538334,2.2427874,3386.6,3385.1,1.5]
[1641474538733,0.7664,3386.6,3385.5,1.5]
[1641474538936,0.7664,3386.6,3386.1,2.00479]
[1641474539134,0.781654,3386.5,3386.1,2.00479]
[1641474539436,8.0,3386.8,3386.1,2.00479]
[1641474539636,8.0,3386.8,3386.2,0.060551]
[1641474540233,1.47607141,3387.4,3386.2,0.060551]
[1641474540234,5.47607141,3387.4,3386.2,0.060551]
[1641474540435,8.0,3387.3,3386.2,0.060551]
[1641474540635,8.5776,3387.3,3386.2,0.060551]
[1641474540839,4.724293,3387.2,3386.2,0.060551]
[1641474541036,8.0,3387.1,3386.6,2.00479]
[1641474541236,4.0,3386.7,3386.6,2.00479]
[1641474541436,24.91,3386.7,3386.6,2.00479]
[1641474541635,26.78353888,3386.7,3386.6,2.00479]
[1641474541838,13.87353888,3386.7,3386.6,2.00479]
[1641474542337,9.87353888,3386.7,3386.6,2.00479]
[1641474542537,0.384472,3387.1,3386.6,2.464772]
[1641474542741,10.00479,3387.4,3386.6,3.311272]
[1641474543038,2.00479,3387.4,3386.7,0.060551]
[1641474543237,1.47615639,3387.5,3386.7,0.060551]
[1641474543638,8.0,3387.7,3386.7,0.060551]
[1641474543838,0.384472,3387.4,3386.7,0.060551]
[1641474544037,8.0,3387.7,3386.7,0.060551]
[1641474544646,9.47592109,3387.7,3386.7,0.060551]
[1641474544944,4.0,3387.6,3387.1,2.00479]
[1641474545146,8.0,3387.4,3387.1,2.00479]
[1641474545544,0.397182,3387.3,3387.1,2.00479]
[1641474545746,8.384472,3387.2,3387.1,2.00479]
[1641474545947,0.384472,3387.2,3387.1,2.464772]
[1641474546146,0.384472,3387.2,3387.1,2.00479]
[1641474546345,0.384472,3387.2,3386.6,2.00479]
[1641474546546,0.397182,3387.1,3386.6,2.00479]
[1641474547047,0.397182,3387.1,3386.6,2.389262]
[1641474547247,0.397182,3387.1,3386.6,2.449813]
[1641474547647,1.47606051,3387.4,3386.6,2.449813]
[1641474547848,10.00479,3387.5,3386.6,3.321813]
[1641474548452,2.00479,3387.5,3386.6,3.321813]
[1641474550050,8.0,3387.4,3386.6,3.321813]
[1641474550251,0.781654,3387.3,3386.6,3.321813]
[1641474550453,8.0,3387.2,3386.6,2.937341]
[1641474550654,0.397182,3387.1,3386.6,2.00479]
[1641474551154,1.86057391,3387.3,3386.6,2.389262]
[1641474551552,1.86057391,3387.3,3386.7,0.060551]
[1641474552152,1.47610191,3387.3,3386.7,0.060551]
[1641474552551,0.384472,3387.2,3386.7,0.060551]
[1641474552752,1.47610191,3387.3,3386.7,0.060551]
[1641474553752,1.87328391,3387.3,3386.7,0.060551]
[1641474554154,1.47610191,3387.3,3386.7,0.060551]
[1641474556162,2.00479,3387.5,3386.7,0.8019883]
[1641474557158,1.47589495,3387.8,3386.7,1.6339883]
[1641474557358,1.47589494,3388.1,3386.7,3.10951957]
[1641474557359,0.7414373,3388.1,3386.7,3.10951957]
[1641474557657,0.7414373,3388.1,3387.1,1.5]
[1641474557858,0.7414373,3388.1,3386.9,14.41]
[1641474558257,0.7414373,3388.1,3387.4,1.5]
[1641474558458,0.99842356,3388.3,3388.0,1.5]
[1641474558659,0.7414373,3388.5,3388.2,1.5]
[1641474558859,0.7414373,3388.5,3388.3,0.060551]
[1641474559058,0.7414373,3388.5,3388.4,4.00958]
[1641474559258,3.73e-05,3388.5,3388.4,4.00958]
[1641474559460,3.73e-05,3388.5,3388.4,4.469562]
[1641474559658,0.99842356,3388.8,3388.4,4.469562]
[1641474559859,0.99842356,3388.8,3388.5,0.060551]
[1641474560262,9.5,3388.7,3388.5,0.060551]
[1641474560460,8.0,3388.7,3388.4,2.00479]
[1641474560858,0.03338888,3388.6,3388.4,2.00479]
[1641474561059,0.03338888,3388.6,3388.5,1.0]
[1641474561761,0.03338888,3388.6,3388.5,1.520533]
[1641474561960,0.99842356,3388.9,3388.5,1.520533]
[1641474562360,1.38289556,3388.9,3388.5,1.520533]
[1641474563160,1.38289556,3388.9,3388.8,2.00479]
[1641474563360,3.25547167,3388.9,3388.8,2.00479]
[1641474563560,1.38289556,3388.9,3388.8,2.00479]
[1641474563762,0.384472,3388.9,3388.8,2.00479]
[1641474563961,0.384472,3388.9,3388.8,2.464772]
[1641474564163,0.384472,3388.9,3388.8,2.525323]
[1641474564360,0.384472,3388.9,3388.8,2.00479]
[1641474564560,1.85989877,3388.9,3388.8,2.00479]
[1641474564761,0.384472,3388.9,3388.8,2.00479]
[1641474565961,0.397182,3389.2,3388.9,0.615528]
[1641474567462,8.0,3389.3,3388.9,0.615528]
[1641474569163,0.397182,3389.2,3388.9,0.615528]
[1641474569565,8.0,3389.3,3388.9,0.615528]
[1641474569764,2.87079944,3389.4,3388.9,0.615528]
[1641474570066,2.47361744,3389.4,3389.0,0.060551]
[1641474570266,0.99842356,3389.4,3389.0,0.060551]
[1641474570964,0.99842356,3389.4,3389.2,1.0]
[1641474571165,0.99842356,3389.4,3389.3,0.520533]
[1641474571973,3.47971843,3390.0,3389.3,0.520533]
[1641474571974,0.99842356,3389.8,3389.3,0.520533]
[1641474572169,0.99842356,3389.8,3389.5,1.5]
[1641474572371,1.49741591,3390.3,3389.7,1.5]
[1641474572573,1.49741591,3390.3,3389.9,1.5]
[1641474572769,1.49741591,3390.3,3389.7,0.8681]
[1641474572970,1.49741591,3390.3,3390.0,0.060551]
[1641474573170,1.49741591,3390.3,3390.1,2.464772]
[1641474573369,1.49741591,3390.7,3390.1,2.464772]
[1641474573571,1.89459791,3390.7,3390.1,2.464772]
[1641474574471,1.89459791,3390.7,3390.1,2.525323]
[1641474574869,0.46918276,3390.6,3390.1,2.525323]
[1641474575270,8.0,3390.5,3390.1,2.464772]
[1641474575471,4.0,3390.4,3390.1,2.00479]
[1641474575671,4.0,3390.4,3389.2,1.0]
[1641474575672,10.97481967,3390.2,3389.2,1.0]
[1641474575874,9.47481967,3390.2,3389.2,1.0]
[1641474576074,4.0,3389.8,3389.2,1.0]
[1641474576273,8.0,3389.6,3389.2,1.0]
[1641474576474,8.0,3389.7,3389.2,1.0]
[1641474576674,0.397182,3389.6,3389.2,1.0]
[1641474577274,0.397182,3389.6,3389.2,3.00479]
[1641474577677,8.0,3389.5,3389.2,3.00479]
[1641474577977,0.397182,3389.4,3389.2,3.00479]
[1641474578399,12.50610151,3389.3,3389.2,1.0]
[1641474578580,12.50610151,3389.3,3388.5,1.62574239]
[1641474578581,12.90328351,3389.3,3388.5,1.62574239]
[1641474578776,4.0,3388.6,3388.5,1.62574239]
[1641474578977,12.397182,3388.6,3388.5,1.22394239]
[1641474579378,12.43056708,3388.6,3388.5,1.22394239]
[1641474579579,18.62795755,3388.6,3388.5,1.22394239]
[1641474579778,13.90617455,3388.6,3388.5,1.22394239]
[1641474579977,7.40359046,3388.6,3388.5,0.5982]
[1641474580578,5.92798299,3388.6,3388.5,0.5982]
[1641474580978,1.92798299,3388.6,3388.5,0.5982]
[1641474581181,1.92798299,3388.6,3388.5,1.3492263]
[1641474581382,1.92798299,3388.6,3388.5,1.69302128]
[1641474581383,0.89974984,3388.6,3388.5,1.69302128]
[1641474581880,8.89974984,3388.6,3388.5,1.69302128]
[1641474582281,8.89974984,3388.6,3388.5,1.3492263]
[1641474582581,10.37538126,3388.6,3388.5,0.5982]
[1641474582981,24.78538126,3388.6,3388.5,0.5982]
[1641474583381,24.78538126,3388.6,3387.9,1.25171683]
[1641474583382,28.03153284,3388.6,3387.9,1.25171683]
[1641474583584,27.88599733,3388.0,3387.8,1.25176871]
[1641474583782,9.897182,3387.9,3387.6,1.49741591]
[1641474583983,8.0,3387.7,3387.6,1.49741591]
[1641474584184,4.722689,3387.9,3387.6,1.95739791]
[1641474584384,8.0,3388.2,3387.6,1.95739791]
[1641474584585,0.397182,3388.1,3387.6,1.95739791]
[1641474584783,0.46918276,3387.9,3387.6,1.95739791]
[1641474584985,20.91,3387.8,3386.9,1.49741591]
[1641474585283,10.00479,3387.4,3386.9,1.49741591]
[1641474585482,2.401972,3387.4,3386.9,1.55796691]
[1641474586184,1.00162313,3387.3,3386.8,1.49741591]
[1641474586485,8.0,3386.9,3386.8,1.49741591]
[1641474586883,8.397182,3386.9,3386.8,1.49741591]
[1641474587287,10.401972,3386.9,3386.8,1.49741591]
[1641474587487,10.401972,3386.9,3386.7,0.32321529]
[1641474588088,2.00479,3386.9,3386.7,0.32321529]
[1641474588487,0.46918276,3387.3,3386.8,0.060551]
[1641474588688,2.00479,3387.4,3386.8,0.661551]
[1641474588890,3.00641313,3387.4,3386.8,0.98476629]
[1641474589090,3.40359513,3387.4,3386.8,0.98476629]
[1641474589388,3.40359513,3387.4,3386.9,2.00479]
[1641474590291,3.40359513,3387.4,3386.9,2.32800529]
[1641474590593,2.401972,3387.4,3386.9,2.32800529]
[1641474590791,8.0,3387.3,3386.9,2.32800529]
[1641474590992,8.0,3387.1,3386.9,2.32800529]
[1641474591393,8.0,3387.1,3387.0,0.32321529]
[1641474591592,26.41,3387.1,3387.0,0.32321529]
[1641474591992,33.00733878,3387.1,3387.0,1.529e-05]
[1641474592194,41.53105599,3387.1,3386.2,1.85355476]
[1641474592392,24.91,3386.3,3386.2,1.85355476]
[1641474592592,27.48570515,3386.3,3386.0,4.34953569]
[1641474592794,9.5,3386.1,3385.8,2.49598093]
[1641474592996,26.41,3385.9,3385.5,3.13179364]
[1641474593198,10.00479,3385.7,3385.5,3.13179364]
[1641474593400,2.00479,3385.7,3385.6,2.44102325]
[1641474593609,2.00479,3385.7,3385.6,1.98104125]
[1641474594100,0.002,3386.2,3385.6,3.48104125]
[1641474594301,0.002,3386.2,3385.8,2.97599297]
[1641474594499,0.002,3386.2,3385.6,2.1098]
[1641474594703,0.002,3386.2,3385.6,0.6098]
[1641474594900,0.002,3386.2,3385.7,0.060551]
[1641474595099,4.0,3387.2,3386.1,2.97576208]
[1641474595301,4.0,3387.2,3386.9,2.00479]
[1641474595499,4.0,3387.2,3387.0,0.844454]
[1641474595699,4.0,3387.2,3386.9,2.758441]
[1641474595700,9.5,3387.1,3386.9,2.69789]
[1641474595900,8.0,3386.9,3385.5,32.9219]
[1641474596099,8.0,3386.9,3385.1,3.13179364]
[1641474596500,1.47643535,3386.7,3385.1,3.13179364]
[1641474596700,1.47643535,3386.7,3385.6,1.98104125]
[1641474596900,4.0,3386.6,3385.6,1.98104125]
[1641474597102,8.0,3386.5,3385.6,1.98104125]
[1641474597304,8.0,3386.3,3385.7,2.00479]
[1641474597500,0.397182,3386.2,3385.7,2.00479]
[1641474598399,8.397182,3386.2,3385.7,2.00479]
[1641474598602,12.0,3386.0,3385.7,2.00479]
[1641474598803,8.0,3385.8,3385.7,2.00479]
[1641474599202,4.0,3386.0,3385.5,0.060551]
[1641474599805,12.0,3386.0,3385.5,0.060551]
[1641474600204,8.0,3385.7,3385.3,2.00479]
[1641474600406,8.0,3385.7,3385.6,1.87842066]
[1641474600606,8.397182,3385.7,3385.6,1.87842066]
[1641474601204,10.401972,3385.7,3385.6,1.87842066]
[1641474601404,11.901972,3385.7,3385.6,1.87842066]
[1641474601604,11.8789198,3385.7,3385.0,1.87842066]
[1641474602004,16.6047478,3385.7,3385.0,1.87842066]
[1641474602205,8.0,3385.5,3385.0,1.87842066]
[1641474602407,8.397182,3385.4,3385.0,1.87842066]
[1641474602805,8.0,3385.1,3385.0,1.87842066]
[1641474603006,8.397182,3385.1,3384.8,1.87842066]
[1641474603807,8.397182,3385.1,3384.9,0.459982]
[1641474604207,8.397182,3385.1,3384.8,1.87842066]
[1641474605208,8.397182,3385.1,3384.6,2.50456088]
[1641474605209,22.0587536,3385.1,3384.6,4.38298154]
[1641474605409,22.0587536,3385.1,3384.6,1.87842066]
[1641474605610,22.38731873,3384.7,3384.4,2.50456088]
[1641474605809,26.41,3384.5,3384.4,2.50456088]
[1641474606008,12.0,3384.5,3384.4,2.50456088]
[1641474606209,16.727503,3384.5,3384.4,2.50456088]
[1641474606411,18.20490248,3384.5,3384.4,2.50456088]
[1641474606711,31.137503,3384.5,3383.9,2.50456088]
[1641474607010,22.41,3384.0,3383.9,2.50456088]
[1641474607214,23.1122,3384.0,3383.9,2.50456088]
[1641474607412,0.397182,3383.9,3383.4,3.443077]
[1641474607614,8.0,3383.3,3382.0,65.3123]
[1641474607814,8.0,3383.1,3382.0,65.3123]
[1641474608011,8.0,3383.1,3382.2,1.5]
[1641474608212,8.0,3383.1,3382.9,3.13268092]
[1641474609413,0.397182,3383.0,3382.9,3.13268092]
[1641474609615,0.397182,3383.0,3382.3,2.00479]
[1641474609815,0.397182,3383.0,3382.4,0.060551]
[1641474610016,4.0,3382.8,3382.3,2.00479]
[1641474610217,4.397182,3382.8,3382.3,2.00479]
[1641474610615,12.397182,3382.8,3382.1,1.70799222]
[1641474611015,8.397182,3382.8,3382.1,0.384472]
[1641474611216,8.397182,3382.8,3381.6,3.75645574]
[1641474611416,10.00479,3382.5,3381.7,2.00479]
[1641474611617,8.0,3382.3,3381.7,2.00479]
[1641474611817,4.0,3382.0,3381.7,2.00479]
[1641474612015,0.397182,3381.9,3381.6,3.75645574]
[1641474612216,8.0,3381.8,3381.5,3.75645574]
[1641474612617,8.0,3381.6,3381.5,3.75645574]
[1641474612918,29.44362512,3381.6,3381.5,3.75645574]
[1641474613317,31.95340633,3381.6,3381.3,1.70799222]
[1641474613518,24.91,3381.4,3381.3,1.70799222]
[1641474613922,29.641837,3381.4,3381.1,0.07835899]
[1641474614121,8.0,3381.2,3381.1,0.07835899]
[1641474614319,20.91,3381.2,3381.1,0.07835899]
[1641474614522,25.642117,3381.2,3381.0,2.88241869]
[1641474614724,4.00958,3381.6,3381.0,4.84240069]
[1641474614921,0.75192127,3382.0,3381.4,1.5]
[1641474615124,0.75192127,3382.0,3381.2,1.5]
[1641474615320,0.75192127,3382.0,3381.5,2.065341]
[1641474615522,3.00747141,3382.3,3381.5,2.065341]
[1641474615721,1.00268141,3381.7,3381.5,2.065341]
[1641474615920,1.00268141,3381.7,3381.6,0.459982]
[1641474616621,1.00268141,3381.7,3381.6,0.844454]
[1641474617222,1.00268141,3381.7,3381.5,2.065341]
[1641474617425,0.397182,3382.0,3381.5,2.065341]
[1641474617622,2.00479,3382.3,3381.5,3.565341]
[1641474617824,1.4781245,3382.8,3381.9,1.5]
[1641474618027,1.4779257,3383.7,3382.5,1.5]
[1641474618424,1.4779257,3383.7,3382.3,1.5]
[1641474618825,8.0,3383.4,3382.3,1.5]
[1641474619424,8.0,3383.2,3382.5,2.00479]
[1641474619625,8.397182,3383.1,3382.5,2.00479]
[1641474620225,0.397182,3383.1,3382.6,0.060551]
[1641474620428,8.0,3383.0,3382.5,2.389262]
[1641474620628,0.397182,3382.9,3382.5,2.00479]
[1641474621425,8.0,3382.8,3382.2,2.00479]
[1641474621625,8.397182,3382.7,3381.5,1.47785799]
[1641474621925,8.397182,3382.7,3381.3,30.8252]
[1641474622225,8.397182,3382.7,3381.5,1.5]
[1641474622425,0.328182,3382.7,3382.1,1.5]
[1641474622624,1.47810265,3382.9,3382.2,0.514023]
[1641474623327,0.397182,3382.8,3382.3,2.00479]
[1641474623527,0.397182,3382.8,3382.3,2.134341]
[1641474623927,8.397182,3382.8,3382.3,2.134341]
[1641474624126,8.397182,3382.8,3382.3,2.00479]
[1641474624326,8.0,3382.7,3382.3,2.00479]
[1641474624529,0.397182,3382.6,3382.3,2.00479]
[1641474624929,8.0,3382.5,3382.4,0.459982]
[1641474625131,4.397182,3382.6,3382.3,2.00479]
[1641474625330,0.397182,3382.5,3382.3,2.00479]
[1641474625831,0.397182,3382.5,3382.4,0.459982]
[1641474626029,0.397182,3382.5,3382.3,2.00479]
[1641474626529,8.0,3382.9,3382.0,1.5]
[1641474626729,2.00479,3383.3,3381.9,2.00479]
[1641474626730,2.00479,3383.3,3382.2,2.014023]
[1641474626929,10.00479,3383.3,3382.2,0.514023]
[1641474627330,2.00479,3382.8,3382.2,0.514023]
[1641474627530,10.00479,3382.8,3382.2,0.514023]
[1641474627729,10.401972,3382.8,3382.2,0.514023]
[1641474627930,10.401972,3382.8,3381.5,1.5]
[1641474628131,10.401972,3382.8,3381.2,33.19191089]
[1641474628330,11.089072,3382.8,3381.2,31.7139]
[1641474628532,4.0,3382.7,3381.2,31.7139]
[1641474628730,4.0,3382.7,3381.0,1.5]
[1641474628731,4.0,3382.7,3381.1,0.6313]
[1641474628930,12.0,3382.7,3381.1,0.6313]
[1641474629130,12.0,3382.7,3381.6,1.5]
[1641474629331,12.0,3382.7,3381.7,2.00479]
[1641474629732,8.0,3382.7,3381.7,2.00479]
[1641474630731,2.00479,3382.8,3382.0,1.5]
[1641474630933,0.6313,3384.3,3382.7,1.5]
[1641474631235,1.47758722,3384.1,3382.7,2.1137]
[1641474631432,1.47758722,3384.1,3382.8,2.00479]
[1641474631433,2.00479,3383.6,3382.8,2.00479]
[1641474631631,1.5,3383.4,3382.4,2.00479]
[1641474631831,8.0,3383.0,3382.2,31.9294]
[1641474632233,0.397182,3382.9,3381.7,1.47776408]
[1641474632633,8.397182,3382.9,3381.6,1.5]
[1641474632834,4.0,3382.5,3381.6,1.5]
[1641474633035,4.8503,3382.5,3381.6,1.5]
[1641474633234,12.8503,3382.5,3381.6,1.5]
[1641474633438,10.00479,3382.3,3381.5,1.5]
[1641474633638,0.397182,3382.2,3381.5,1.5]
[1641474634247,7.664812,3382.2,3381.2,2.00479]
[1641474634438,7.664812,3382.2,3380.8,2.00479]
[1641474634638,7.397182,3381.8,3380.8,2.00479]
[1641474634838,8.230182,3381.8,3380.8,2.00479]
[1641474635439,2.00479,3381.5,3380.8,2.00479]
[1641474635640,0.26763,3381.4,3380.8,2.00479]
[1641474635841,0.26763,3381.4,3380.9,0.397182]
[1641474636040,0.26763,3381.4,3380.8,2.00479]
[1641474636443,2.00479,3381.5,3380.9,0.397182]
[1641474636841,2.27242,3381.5,3380.9,0.397182]
[1641474637041,2.27242,3381.5,3380.8,2.00479]
[1641474637641,2.27242,3381.5,3380.8,2.401972]
[1641474637940,2.27242,3381.5,3380.2,34.90302607]
[1641474638141,8.0,3381.2,3379.3,12.91]
[1641474638340,2.27242,3381.5,3379.8,1.5]
[1641474638341,3.48350464,3381.5,3379.8,1.5]
[1641474638541,12.0,3381.3,3379.7,1.5]
[1641474638741,12.0,3381.3,3379.8,0.6313]
[1641474639141,12.0,3381.3,3379.7,1.5]
[1641474639342,11.0,3381.3,3379.7,1.5]
[1641474639543,2.00479,3380.8,3380.0,2.00479]
[1641474639742,0.26763,3380.7,3380.1,0.397182]
[1641474639943,0.26763,3380.7,3380.1,0.781654]
[1641474640345,0.26763,3380.7,3380.1,0.384472]
[1641474640545,4.26763,3380.7,3379.7,2.00479]
[1641474640944,12.26763,3380.7,3379.7,2.00479]
[1641474641145,13.74669677,3380.7,3379.7,2.00479]
[1641474641548,2.00479,3380.4,3379.7,2.00479]
[1641474641752,0.26763,3380.3,3379.7,2.00479]
[1641474642144,0.26763,3380.3,3379.7,2.389262]
[1641474642345,8.26763,3380.3,3379.7,2.00479]
[1641474642547,8.26763,3380.3,3379.2,2.00479]
[1641474643348,0.26763,3380.3,3379.4,1.5]
[1641474643546,2.00479,3380.0,3379.4,1.5]
[1641474643747,0.26763,3379.9,3379.5,0.397182]
[1641474643950,2.00479,3380.0,3379.5,0.397182]
[1641474644151,2.00479,3380.0,3379.2,2.00479]
[1641474644348,0.26763,3379.9,3379.2,2.00479]
[1641474645452,2.00479,3379.6,3378.8,1.5]
[1641474645652,0.26763,3379.5,3378.8,1.5]
[1641474645852,0.26763,3379.5,3378.7,34.3262]
[1641474646053,0.26763,3379.5,3378.7,1.5]
[1641474646252,0.26763,3379.5,3378.8,0.384472]
[1641474646655,0.26763,3379.5,3378.5,2.00479]
[1641474646854,0.26763,3379.5,3368.3,0.84286084]
[1641474646855,8.0,3378.5,3377.3,96.7037]
[1641474647054,8.7064,3378.5,3377.3,64.6944]
[1641474647256,8.7064,3378.5,3377.3,66.1944]
[1641474647257,4.73667,3378.4,3377.3,66.1944]
[1641474647455,4.73667,3378.4,3378.2,2.00479]
[1641474647753,4.73667,3378.4,3378.3,1.5]
[1641474647955,4.0,3379.7,3378.3,1.5]
[1641474648155,4.0,3379.7,3378.2,2.6474873]
[1641474648356,4.0,3379.7,3378.8,1.46965397]
[1641474648357,10.00479,3379.6,3378.8,1.46965397]
[1641474648555,2.00479,3379.6,3378.9,0.781654]
[1641474648858,2.27242,3379.6,3378.9,0.397182]
[1641474649157,2.27242,3379.6,3378.8,1.46965397]
[1641474649361,10.7519485,3379.6,3378.8,1.46965397]
[1641474649658,10.7519485,3379.6,3378.9,0.397182]
[1641474649858,10.4843185,3379.6,3378.9,1.135582]
[1641474650660,0.26763,3379.5,3378.9,1.135582]
[1641474650862,10.4843185,3379.6,3378.9,0.781654]
[1641474651062,9.00479,3379.6,3379.0,1.46965397]
[1641474651261,1.00479,3379.6,3379.1,0.397182]
[1641474652262,1.00479,3379.6,3379.1,1.86683597]
[1641474652861,8.0,3379.4,3379.1,1.46965397]
[1641474653061,0.7884,3379.4,3379.1,1.46965397]
[1641474653262,4.734778,3379.3,3379.2,0.459982]
[1641474653462,4.734778,3379.3,3379.1,1.46965397]
[1641474653865,0.7884,3379.4,3379.1,1.86683597]
[1641474654068,1.00479,3379.6,3379.2,0.459982]
[1641474654267,1.00479,3379.6,3379.4,1.0]
[1641474654664,1.00479,3379.6,3379.5,0.397182]
[1641474654867,0.73486724,3379.9,3379.5,0.857164]
[1641474655465,0.73486724,3379.9,3379.6,2.00479]
[1641474656264,1.00249724,3379.9,3379.4,1.0]
[1641474656464,8.26763,3379.9,3379.4,1.0]
[1641474656866,4.734218,3379.8,3379.4,1.0]
[1641474657066,0.26763,3379.7,3379.4,1.0]
[1641474657966,4.734358,3379.6,3379.4,1.0]
[1641474658167,0.26763,3379.5,3379.4,1.0]
[1641474658367,8.26763,3379.5,3379.4,1.0]
[1641474658567,13.002128,3379.5,3379.4,1.0]
[1641474659568,15.006918,3379.5,3379.4,1.0]
[1641474660069,16.506918,3379.5,3378.6,3.47444397]
[1641474660268,15.006918,3379.5,3378.6,3.47444397]
[1641474660668,7.006918,3379.5,3378.6,3.47444397]
[1641474660868,7.006918,3379.5,3378.7,1.5]
[1641474660869,2.00479,3379.5,3378.7,1.5]